fUST/lending_fUST_20250209
["ID","MTS","AMOUNT","RATE_DAILY","PERIOD"]
[352350640,1739052640234,-500.0,0.00010958,2]
[352350641,1739052640244,-500.0,0.00010958,2]
[352350642,1739052640253,-500.0,0.00010958,2]
[352350643,1739052640262,-500.0,0.00010958,2]
[352350644,1739052640271,-500.0,0.00010958,2]
[352350645,1739052640280,-500.0,0.00010958,2]
[352350646,1739052640290,-500.0,0.00010958,2]
[352350647,1739052640300,-500.0,0.00010958,2]
[352350648,1739052640311,-1773.38,0.00010958,2]
[352350649,1739052640321,-871.32,0.00010958,2]
[352350650,1739052640489,-500.0,0.00010958,2]
[352350651,1739052640500,-500.0,0.00010958,2]
[352350652,1739052640511,-500.0,0.00010958,2]
[352350653,1739052640523,-500.0,0.00010958,2]
[352350654,1739052640536,-500.0,0.00010958,2]
[352350655,1739052640546,-500.0,0.00010958,2]
[352350656,1739052640557,-199.83306714,0.00010958,2]
[352350657,1739052640566,-2123.8,0.00010958,2]
[352350658,1739052640576,-500.0,0.00010958,2]
[352350659,1739052640585,-500.0,0.00010958,2]
[352350660,1739052640596,-500.0,0.00010958,2]
[352350661,1739052640606,-500.0,0.00010958,2]
[352350662,1739052640616,-500.0,0.00010958,2]
[352350663,1739052640625,-500.0,0.00010958,2]
[352350664,1739052640635,-500.0,0.00010958,2]
[352350665,1739052640644,-500.0,0.00010958,2]
[352350666,1739052640653,-500.0,0.00010958,2]
[352350667,1739052640663,-500.0,0.00010958,2]
[352350668,1739052640672,-500.0,0.00010958,2]
[352350669,1739052640681,-500.0,0.00010958,2]
[352350670,1739052640690,-500.0,0.00010958,2]
[352350671,1739052640699,-500.0,0.00010958,2]
[352350672,1739052640709,-904.63,0.00010958,2]
[352350673,1739052640718,-500.0,0.00010958,2]
[352350674,1739052640727,-503.39767878,0.00010958,2]
[352350675,1739052640736,-500.0,0.00010958,2]
[352350676,1739052640746,-500.0,0.00010958,2]
[352350677,1739052640755,-500.0,0.00010958,2]
[352350678,1739052640764,-2020.77,0.00010958,2]
[352350679,1739052640774,-715.99,0.00010958,2]
[352350680,1739052640784,-500.0,0.00010958,2]
[352350681,1739052640793,-500.0,0.00010958,2]
[352350682,1739052640802,-500.0,0.00010958,2]
[352350683,1739052640811,-500.0,0.00010958,2]
[352350684,1739052640820,-500.0,0.00010958,2]
[352350685,1739052640829,-500.0,0.00010958,2]
[352350686,1739052640838,-500.0,0.00010958,2]
[352350687,1739052640847,-500.0,0.00010958,2]
[352350688,1739052640856,-1859.68,0.00010958,2]
[352350689,1739052640866,-500.0,0.00010958,2]
[352350690,1739052640875,-500.0,0.00010958,2]
[352350691,1739052640884,-500.0,0.00010958,2]
[352350692,1739052640893,-500.0,0.00010958,2]
[352350693,1739052640902,-500.0,0.00010958,2]
[352350694,1739052640912,-2869.44,0.00010958,2]
[352350695,1739052640921,-471.4,0.00010958,2]
[352350696,1739052640930,-500.0,0.00010958,2]
[352350697,1739052640939,-500.0,0.00010958,2]
[352350698,1739052640949,-500.0,0.00010958,2]
[352350699,1739052640958,-745.5,0.00010958,2]
[352350700,1739052640967,-500.0,0.00010958,2]
[352350701,1739052640977,-500.0,0.00010958,2]
[352350702,1739052640987,-500.0,0.00010958,2]
[352350703,1739052640996,-8608.01,0.00010958,2]
[352350704,1739052641006,-500.0,0.00010958,2]
[352350705,1739052641015,-1039.13,0.00010958,2]
[352350706,1739052641024,-500.0,0.00010958,2]
[352350707,1739052641034,-500.0,0.00010958,2]
[352350708,1739052641043,-500.0,0.00010958,2]
[352350709,1739052641053,-500.0,0.00010958,2]
[352350710,1739052641062,-642.4,0.00010958,2]
[352350711,1739052641071,-733.69,0.00010958,2]
[352350712,1739052641081,-500.0,0.00010958,2]
[352350713,1739052641090,-500.0,0.00010958,2]
[352350714,1739052641100,-655.78,0.00010958,2]
[352350715,1739052641109,-500.0,0.00010958,2]
[352350716,1739052641119,-500.0,0.00010958,2]
[352350717,1739052641128,-509.33,0.00010958,2]
[352350718,1739052641138,-151.71668588,0.00010995,2]
[352350719,1739052641148,-601.81,0.00011093,2]
[352350720,1739052641157,-601.81,0.00011094,2]
[352350721,1739052641167,-601.81,0.00011094,2]
[352350722,1739052641178,-601.81,0.00011094,2]
[352350723,1739052641187,-601.81,0.00011094,2]
[352350724,1739052641196,-601.81,0.00011094,2]
[352350725,1739052641207,-601.81,0.00011094,2]
[352350726,1739052641217,-601.81,0.00011094,2]
[352350727,1739052641228,-500.0,0.00011095,2]
[352350728,1739052641238,-500.0,0.00011095,2]
[352350729,1739052641248,-338.75832834,0.00011095,2]
[352350730,1739052641258,-500.0,0.00011095,2]
[352350731,1739052641267,-500.0,0.00011095,2]
[352350732,1739052641277,-500.0,0.00011095,2]
[352350733,1739052641287,-250.27580523,0.00011095,2]
[352350734,1739052641297,-500.0,0.00011095,2]
[352350735,1739052641306,-500.0,0.00011095,2]
[352350736,1739052641316,-500.0,0.00011095,2]
[352350737,1739052641326,-500.0,0.00011095,2]
[352350738,1739052641336,-500.0,0.00011095,2]
[352350739,1739052641345,-731.02,0.00011095,2]
[352350740,1739052641356,-764.93,0.00011095,2]
[352350741,1739052641367,-500.0,0.00011095,2]
[352350742,1739052641377,-500.0,0.00011095,2]
[352350743,1739052641387,-500.0,0.00011095,2]
[352350744,1739052641397,-446.16262195,0.00011095,2]
[352350745,1739052641406,-500.0,0.00011095,2]
[352350746,1739052641416,-500.0,0.00011095,2]
[352350747,1739052641425,-532.53,0.00011095,2]
[352350748,1739052641435,-500.0,0.00011095,2]
[352350749,1739052641444,-705.36,0.00011095,2]
[352350750,1739052641454,-500.0,0.00011095,2]
[352350751,1739052641463,-500.0,0.00011095,2]
[352350752,1739052641473,-500.0,0.00011095,2]
[352350753,1739052641482,-474.58636919,0.00011095,2]
[352350754,1739052641492,-615.88,0.00011095,2]
[352350755,1739052641502,-500.0,0.00011095,2]
[352350756,1739052641514,-500.0,0.00011095,2]
[352350757,1739052641527,-500.0,0.00011095,2]
[352350758,1739052641542,-500.0,0.00011095,2]
[352350759,1739052641553,-604.87222016,0.00011095,2]
[352350760,1739052641563,-500.0,0.00011095,2]
[352350761,1739052641573,-500.0,0.00011095,2]
[352350762,1739052641583,-500.0,0.00011095,2]
[352350763,1739052641594,-500.0,0.00011095,2]
[352350764,1739052641604,-500.0,0.00011095,2]
[352350765,1739052641614,-500.0,0.00011095,2]
[352350766,1739052641623,-500.0,0.00011095,2]
[352350767,1739052641633,-500.0,0.00011095,2]
[352350768,1739052641642,-637.71,0.00011095,2]
[352350769,1739052641651,-500.0,0.00011095,2]
[352350770,1739052641660,-500.0,0.00011095,2]
[352350771,1739052641669,-500.0,0.00011095,2]
[352350772,1739052641678,-500.0,0.00011095,2]
[352350773,1739052641688,-500.0,0.00011095,2]
[352350774,1739052641698,-500.0,0.00011095,2]
[352350775,1739052641708,-500.0,0.00011095,2]
[352350776,1739052641717,-500.0,0.00011095,2]
[352350777,1739052641727,-500.0,0.00011095,2]
[352350778,1739052641737,-500.0,0.00011095,2]
[352350779,1739052641747,-500.0,0.00011095,2]
[352350780,1739052641757,-500.0,0.00011095,2]
[352350781,1739052641767,-500.0,0.00011095,2]
[352350782,1739052641778,-500.0,0.00011095,2]
[352350783,1739052641788,-500.0,0.00011095,2]
[352350784,1739052641797,-500.0,0.00011095,2]
[352350785,1739052641807,-500.0,0.00011095,2]
[352350786,1739052641817,-500.0,0.00011095,2]
[352350787,1739052641827,-500.0,0.00011095,2]
[352350788,1739052641836,-535.35,0.00011095,2]
[352350789,1739052641845,-500.0,0.00011095,2]
[352350790,1739052641854,-689.85,0.00011095,2]
[352350791,1739052641864,-500.0,0.00011095,2]
[352350792,1739052641873,-500.0,0.00011095,2]
[352350793,1739052641883,-500.0,0.00011095,2]
[352350794,1739052641892,-227.60640928,0.00011095,2]
[352350795,1739052641902,-500.0,0.00011095,2]
[352350796,1739052641911,-500.0,0.00011095,2]
[352350797,1739052641921,-22230.14,0.00011095,2]
[352350798,1739052641931,-500.0,0.00011095,2]
[352350799,1739052641940,-621.31,0.00011095,2]
[352350800,1739052641949,-500.0,0.00011095,2]
[352350801,1739052641958,-1281.11,0.00011095,2]
[352350802,1739052641968,-2574.06,0.00011095,2]
[352350803,1739052641978,-500.0,0.00011095,2]
[352350804,1739052641989,-500.0,0.00011095,2]
[352350805,1739052641999,-401.88639281,0.00011095,2]
[352350806,1739052642008,-500.0,0.00011095,2]
[352350807,1739052642017,-979.79,0.00011095,2]
[352350808,1739052642027,-500.0,0.00011095,2]
[352350809,1739052642037,-856.96,0.00011095,2]
[352350810,1739052642047,-500.0,0.00011095,2]
[352350811,1739052642057,-500.0,0.00011095,2]
[352350812,1739052642066,-915.74,0.00011095,2]
[352350813,1739052642076,-500.0,0.00011095,2]
[352350814,1739052642086,-500.0,0.00011095,2]
[352350815,1739052642096,-578.63,0.00011095,2]
[352350816,1739052642107,-500.0,0.00011095,2]
[352350817,1739052642116,-650.39,0.00011095,2]
[352350818,1739052642125,-500.0,0.00011095,2]
[352350819,1739052642135,-500.0,0.00011095,2]
[352350820,1739052642144,-775.46,0.00011095,2]
[352350821,1739052642153,-500.0,0.00011095,2]
[352350822,1739052642163,-500.0,0.00011095,2]
[352350823,1739052642172,-500.0,0.00011095,2]
[352350824,1739052642182,-500.0,0.00011095,2]
[352350825,1739052642191,-500.0,0.00011095,2]
[352350826,1739052642201,-500.0,0.00011095,2]
[352350827,1739052642211,-500.0,0.00011095,2]
[352350828,1739052642219,-500.0,0.00011095,2]
[352350829,1739052642229,-976.13,0.00011095,2]
[352350830,1739052642237,-500.0,0.00011095,2]
[352350831,1739052642246,-500.0,0.00011095,2]
[352350832,1739052642256,-10167.05,0.00011095,2]
[352350833,1739052642267,-500.0,0.00011095,2]
[352350834,1739052642277,-500.0,0.00011095,2]
[352350835,1739052642287,-500.0,0.00011095,2]
[352350836,1739052642296,-961.01,0.00011095,2]
[352350837,1739052642306,-500.0,0.00011095,2]
[352350838,1739052642315,-1945.55,0.00011095,2]
[352350839,1739052642326,-228.92487641,0.00011095,2]
[352350840,1739052642335,-1819.01,0.00011095,2]
[352350841,1739052642345,-4936.47,0.00011095,2]
[352350842,1739052642354,-500.0,0.00011095,2]
[352350843,1739052642364,-500.0,0.00011095,2]
[352350845,1739052642374,-500.0,0.00011095,2]
[352350847,1739052642384,-500.0,0.00011095,2]
[352350848,1739052642393,-892.83,0.00011095,2]
[352350849,1739052642402,-986.2,0.00011095,2]
[352350850,1739052642412,-500.0,0.00011095,2]
[352350851,1739052642421,-500.0,0.00011095,2]
[352350852,1739052642431,-500.0,0.00011095,2]
[352350853,1739052642440,-500.0,0.00011095,2]
[352350854,1739052642450,-500.0,0.00011095,2]
[352350855,1739052642459,-513.93161765,0.00011095,2]
[352350856,1739052642469,-500.0,0.00011095,2]
[352350857,1739052642479,-500.0,0.00011095,2]
[352350858,1739052642488,-1773.38,0.00011095,2]
[352350859,1739052642498,-871.32,0.00011095,2]
[352350860,1739052642508,-500.0,0.00011095,2]
[352350862,1739052642521,-449.98843773,0.00011095,2]
[352350863,1739052642531,-500.0,0.00011095,2]
[352350864,1739052642541,-500.0,0.00011095,2]
[352350866,1739052642551,-500.0,0.00011095,2]
[352350867,1739052642560,-2123.8,0.00011095,2]
[352350869,1739052642572,-500.0,0.00011095,2]
[352350871,1739052642582,-500.0,0.00011095,2]
[352350873,1739052642594,-500.0,0.00011095,2]
[352350874,1739052642604,-500.0,0.00011095,2]
[352350875,1739052642614,-500.0,0.00011095,2]
[352350876,1739052642623,-500.0,0.00011095,2]
[352350877,1739052642634,-500.0,0.00011095,2]
[352350878,1739052642645,-500.0,0.00011095,2]
[352350879,1739052642654,-500.0,0.00011095,2]
[352350880,1739052642665,-500.0,0.00011095,2]
[352350881,1739052642675,-904.63,0.00011095,2]
[352350882,1739052642684,-500.0,0.00011095,2]
[352350883,1739052642693,-500.0,0.00011095,2]
[352350884,1739052642704,-500.0,0.00011095,2]
[352350885,1739052642714,-2020.77,0.00011095,2]
[352350886,1739052642724,-715.99,0.00011095,2]
[352350887,1739052642734,-375.51,0.00011095,2]
[352350888,1739052642745,-500.0,0.00011095,2]
[352350889,1739052642754,-500.0,0.00011095,2]
[352350890,1739052642764,-500.0,0.00011095,2]
[352350891,1739052642774,-500.0,0.00011095,2]
[352350892,1739052642785,-1859.68,0.00011095,2]
[352350893,1739052642795,-500.0,0.00011095,2]
[352350894,1739052642805,-500.0,0.00011095,2]
[352350895,1739052642814,-500.0,0.00011095,2]
[352350896,1739052642824,-500.0,0.00011095,2]
[352350897,1739052642833,-500.0,0.00011095,2]
[352350898,1739052642843,-2869.44,0.00011095,2]
[352350899,1739052642852,-500.0,0.00011095,2]
[352350900,1739052642861,-356.13866016,0.00011095,2]
[352350901,1739052642871,-745.5,0.00011095,2]
[352350902,1739052642881,-500.0,0.00011095,2]
[352350903,1739052642890,-500.0,0.00011095,2]
[352350904,1739052642900,-500.0,0.00011095,2]
[352350905,1739052642909,-8608.01,0.00011095,2]
[352350906,1739052642919,-500.0,0.00011095,2]
[352350907,1739052642928,-1039.13,0.00011095,2]
[352350908,1739052642937,-456.76014065,0.00011095,2]
[352350909,1739052642947,-500.0,0.00011095,2]
[352350911,1739052642957,-500.0,0.00011095,2]
[352350913,1739052642966,-500.0,0.00011095,2]
[352350915,1739052642976,-642.4,0.00011095,2]
[352350917,1739052642986,-733.69,0.00011095,2]
[352350919,1739052642999,-500.0,0.00011095,2]
[352350921,1739052643012,-500.0,0.00011095,2]
[352350923,1739052643023,-655.78,0.00011095,2]
[352350925,1739052643036,-500.0,0.00011095,2]
[352350927,1739052643055,-509.33,0.00011095,2]
[352350929,1739052643070,-155.101,0.0001119,2]
[352350930,1739052643080,-601.81,0.00011231,2]
[352350931,1739052643089,-601.81,0.00011231,2]
[352350932,1739052643099,-601.81,0.00011231,2]
[352350933,1739052643110,-601.81,0.00011231,2]
[352350934,1739052643120,-601.81,0.00011231,2]
[352350935,1739052643129,-601.81,0.00011231,2]
[352350936,1739052643139,-601.90591863,0.00011231,2]
[352350937,1739052643149,-500.0,0.00011232,2]
[352350938,1739052643159,-500.0,0.00011232,2]
[352350939,1739052643168,-500.0,0.00011232,2]
[352350940,1739052643178,-500.0,0.00011232,2]
[352350941,1739052643187,-515.61803568,0.00011232,2]
[352350942,1739052643197,-500.0,0.00011232,2]
[352350943,1739052643206,-731.02,0.00011232,2]
[352350944,1739052643216,-764.93,0.00011232,2]
[352350945,1739052643225,-500.0,0.00011232,2]
[352350946,1739052643235,-500.0,0.00011232,2]
[352350948,1739052643244,-619.4229768,0.00011232,2]
[352350950,1739052643254,-500.0,0.00011232,2]
[352350951,1739052643264,-532.53,0.00011232,2]
[352350953,1739052643273,-500.0,0.00011232,2]
[352350955,1739052643284,-705.36,0.00011232,2]
[352350956,1739052643293,-500.0,0.00011232,2]
[352350957,1739052643303,-500.0,0.00011232,2]
[352350959,1739052643313,-615.88,0.00011232,2]
[352350961,1739052643322,-500.0,0.00011232,2]
[352350962,1739052643332,-500.0,0.00011232,2]
[352350963,1739052643342,-500.0,0.00011232,2]
[352350964,1739052643351,-500.0,0.00011232,2]
[352350965,1739052643360,-500.0,0.00011232,2]
[352350966,1739052643370,-500.0,0.00011232,2]
[352350967,1739052643379,-500.0,0.00011232,2]
[352350968,1739052643391,-500.0,0.00011232,2]
[352350969,1739052643400,-637.71,0.00011232,2]
[352350970,1739052643409,-500.0,0.00011232,2]
[352350971,1739052643419,-500.0,0.00011232,2]
[352350972,1739052643430,-524.34,0.00011232,2]
[352350973,1739052643440,-500.0,0.00011232,2]
[352350974,1739052643449,-500.0,0.00011232,2]
[352350975,1739052643459,-500.0,0.00011232,2]
[352350976,1739052643468,-500.0,0.00011232,2]
[352350977,1739052643478,-500.0,0.00011232,2]
[352350978,1739052643488,-500.0,0.00011232,2]
[352350979,1739052643497,-500.0,0.00011232,2]
[352350980,1739052643507,-500.0,0.00011232,2]
[352350981,1739052643519,-500.0,0.00011232,2]
[352350982,1739052643528,-500.0,0.00011232,2]
[352350983,1739052643537,-500.0,0.00011232,2]
[352350984,1739052643546,-535.35,0.00011232,2]
[352350985,1739052643557,-500.0,0.00011232,2]
[352350986,1739052643566,-689.85,0.00011232,2]
[352350987,1739052643576,-500.0,0.00011232,2]
[352350988,1739052643586,-500.0,0.00011232,2]
[352350989,1739052643597,-281.99002132,0.00011232,2]
[352350990,1739052643607,-500.0,0.00011232,2]
[352350991,1739052643617,-22230.14,0.00011232,2]
[352350992,1739052643626,-500.0,0.00011232,2]
[352350993,1739052643636,-621.31,0.00011232,2]
[352350994,1739052643645,-500.0,0.00011232,2]
[352350995,1739052643654,-1281.11,0.00011232,2]
[352350996,1739052643664,-2574.06,0.00011232,2]
[352350997,1739052643673,-500.0,0.00011232,2]
[352350998,1739052643684,-500.0,0.00011232,2]
[352350999,1739052643694,-500.0,0.00011232,2]
[352351000,1739052643703,-979.79,0.00011232,2]
[352351001,1739052643713,-500.0,0.00011232,2]
[352351002,1739052643722,-856.96,0.00011232,2]
[352351003,1739052643731,-500.0,0.00011232,2]
[352351004,1739052643740,-500.0,0.00011232,2]
[352351005,1739052643750,-915.74,0.00011232,2]
[352351006,1739052643759,-500.0,0.00011232,2]
[352351007,1739052643768,-578.63,0.00011232,2]
[352351008,1739052643778,-500.0,0.00011232,2]
[352351009,1739052643787,-650.39,0.00011232,2]
[352351010,1739052643797,-500.0,0.00011232,2]
[352351011,1739052643807,-500.0,0.00011232,2]
[352351012,1739052643823,-775.46,0.00011232,2]
[352351013,1739052643837,-500.0,0.00011232,2]
[352351014,1739052643849,-500.0,0.00011232,2]
[352351015,1739052643859,-500.0,0.00011232,2]
[352351016,1739052643869,-500.0,0.00011232,2]
[352351017,1739052643878,-500.0,0.00011232,2]
[352351018,1739052643888,-500.0,0.00011232,2]
[352351019,1739052643897,-976.13,0.00011232,2]
[352351020,1739052643907,-500.0,0.00011232,2]
[352351021,1739052643917,-10167.05,0.00011232,2]
[352351022,1739052643927,-500.0,0.00011232,2]
[352351023,1739052644072,-500.0,0.00011232,2]
[352351024,1739052644082,-500.0,0.00011232,2]
[352351025,1739052644093,-961.01,0.00011232,2]
[352351026,1739052644103,-500.0,0.00011232,2]
[352351027,1739052644114,-1945.55,0.00011232,2]
[352351028,1739052644125,-1819.01,0.00011232,2]
[352351029,1739052644134,-4936.47,0.00011232,2]
[352351030,1739052644143,-500.0,0.00011232,2]
[352351031,1739052644154,-500.0,0.00011232,2]
[352351032,1739052644163,-500.0,0.00011232,2]
[352351033,1739052644173,-500.0,0.00011232,2]
[352351034,1739052644184,-892.83,0.00011232,2]
[352351035,1739052644193,-986.2,0.00011232,2]
[352351036,1739052644203,-500.0,0.00011232,2]
[352351037,1739052644213,-500.0,0.00011232,2]
[352351038,1739052644223,-500.0,0.00011232,2]
[352351039,1739052644233,-500.0,0.00011232,2]
[352351040,1739052644243,-500.0,0.00011232,2]
[352351041,1739052644253,-1773.38,0.00011232,2]
[352351042,1739052644263,-871.32,0.00011232,2]
[352351043,1739052644273,-500.0,0.00011232,2]
[352351044,1739052644284,-500.0,0.00011232,2]
[352351045,1739052644294,-2123.8,0.00011232,2]
[352351046,1739052644303,-500.0,0.00011232,2]
[352351047,1739052644313,-500.0,0.00011232,2]
[352351048,1739052644323,-500.0,0.00011232,2]
[352351049,1739052644332,-500.0,0.00011232,2]
[352351050,1739052644341,-500.0,0.00011232,2]
[352351051,1739052644350,-602.70887955,0.00011232,2]
[352351052,1739052644359,-500.0,0.00011232,2]
[352351053,1739052644369,-904.63,0.00011232,2]
[352351054,1739052644379,-500.0,0.00011232,2]
[352351055,1739052644388,-500.0,0.00011232,2]
[352351056,1739052644398,-500.0,0.00011232,2]
[352351057,1739052644408,-2020.77,0.00011232,2]
[352351058,1739052644417,-715.99,0.00011232,2]
[352351059,1739052644426,-500.0,0.00011232,2]
[352351060,1739052644437,-500.0,0.00011232,2]
[352351061,1739052644446,-500.0,0.00011232,2]
[352351062,1739052644456,-1859.68,0.00011232,2]
[352351063,1739052644465,-500.0,0.00011232,2]
[352351064,1739052644475,-500.0,0.00011232,2]
[352351065,1739052644484,-500.0,0.00011232,2]
[352351066,1739052644493,-500.0,0.00011232,2]
[352351067,1739052644502,-2869.44,0.00011232,2]
[352351068,1739052644514,-500.0,0.00011232,2]
[352351069,1739052644524,-745.5,0.00011232,2]
[352351070,1739052644535,-500.0,0.00011232,2]
[352351071,1739052644544,-457.57404294,0.00011232,2]
[352351072,1739052644555,-500.0,0.00011232,2]
[352351073,1739052644565,-8608.01,0.00011232,2]
[352351074,1739052644575,-500.0,0.00011232,2]
[352351075,1739052644584,-1039.13,0.00011232,2]
[352351076,1739052644596,-500.0,0.00011232,2]
[352351077,1739052644605,-495.32141906,0.00011232,2]
[352351078,1739052644614,-642.4,0.00011232,2]
[352351079,1739052644624,-733.69,0.00011232,2]
[352351080,1739052644633,-500.0,0.00011232,2]
[352351081,1739052644643,-500.0,0.00011232,2]
[352351082,1739052644653,-655.78,0.00011232,2]
[352351083,1739052644664,-500.0,0.00011232,2]
[352351084,1739052644674,-509.33,0.00011232,2]
[352351085,1739052644684,-151.59975057,0.00011255,2]
[352351086,1739052644694,-504.66349108,0.00011255,2]
[352351087,1739052644703,-151.64112493,0.00011255,2]
[352351088,1739052644712,-13239.43565616,0.00011287,2]
[352351089,1739052644722,-431.595035,0.000113,2]
[352351090,1739052644731,-500.0,0.00011362,2]
[352351091,1739052644741,-483.93865186,0.00011362,2]
[352351092,1739052644750,-187.20311775,0.00011362,2]
[352351093,1739052644759,-261.26856444,0.00011362,2]
[352351094,1739052644770,-500.0,0.00011362,2]
[352351095,1739052644780,-500.0,0.00011368,2]
[352351096,1739052644789,-586.26103756,0.00011368,2]
[352351097,1739052644799,-254.743765,0.00011369,2]
[352351098,1739052644810,-254.743765,0.00011369,2]
[352351099,1739052644821,-500.0,0.00011369,2]
[352351100,1739052644831,-500.0,0.00011369,2]
[352351101,1739052644840,-500.0,0.00011369,2]
[352351102,1739052644849,-500.0,0.00011369,2]
[352351103,1739052644858,-559.57522098,0.00011369,2]
[352351104,1739052644868,-731.02,0.00011369,2]
[352351105,1739052644878,-764.93,0.00011369,2]
[352351106,1739052644888,-500.0,0.00011369,2]
[352351107,1739052644898,-500.0,0.00011369,2]
[352351108,1739052644907,-500.0,0.00011369,2]
[352351109,1739052644916,-532.53,0.00011369,2]
[352351110,1739052644926,-500.0,0.00011369,2]
[352351111,1739052644936,-705.36,0.00011369,2]
[352351112,1739052644947,-500.0,0.00011369,2]
[352351113,1739052644958,-500.0,0.00011369,2]
[352351114,1739052644969,-615.88,0.00011369,2]
[352351115,1739052644979,-221.71,0.00011369,2]
[352351116,1739052644989,-500.0,0.00011369,2]
[352351117,1739052644999,-500.0,0.00011369,2]
[352351118,1739052645009,-500.0,0.00011369,2]
[352351119,1739052645019,-500.0,0.00011369,2]
[352351120,1739052645028,-649.8897557,0.00011369,2]
[352351121,1739052645037,-500.0,0.00011369,2]
[352351122,1739052645047,-637.71,0.00011369,2]
[352351123,1739052645056,-500.0,0.00011369,2]
[352351124,1739052645067,-500.0,0.00011369,2]
[352351125,1739052645076,-500.0,0.00011369,2]
[352351126,1739052645086,-500.0,0.00011369,2]
[352351127,1739052645096,-500.0,0.00011369,2]
[352351128,1739052645110,-500.0,0.00011369,2]
[352351129,1739052645119,-500.0,0.00011369,2]
[352351130,1739052645129,-500.0,0.00011369,2]
[352351131,1739052645138,-336.26870089,0.00011369,2]
[352351132,1739052645148,-500.0,0.00011369,2]
[352351133,1739052645157,-500.0,0.00011369,2]
[352351134,1739052645167,-535.35,0.00011369,2]
[352351135,1739052645176,-500.0,0.00011369,2]
[352351136,1739052645185,-689.85,0.00011369,2]
[352351137,1739052645194,-151.0,0.00011369,2]
[352351138,1739052645204,-500.0,0.00011369,2]
[352351139,1739052645213,-500.0,0.00011369,2]
[352351140,1739052645222,-500.0,0.00011369,2]
[352351141,1739052645231,-22230.14,0.00011369,2]
[352351142,1739052645240,-500.0,0.00011369,2]
[352351143,1739052645249,-621.31,0.00011369,2]
[352351144,1739052645258,-500.0,0.00011369,2]
[352351145,1739052645267,-1281.11,0.00011369,2]
[352351146,1739052645277,-2574.06,0.00011369,2]
[352351147,1739052645287,-500.0,0.00011369,2]
[352351148,1739052645296,-500.0,0.00011369,2]
[352351149,1739052645305,-500.0,0.00011369,2]
[352351150,1739052645314,-979.79,0.00011369,2]
[352351151,1739052645324,-856.96,0.00011369,2]
[352351152,1739052645333,-500.0,0.00011369,2]
[352351153,1739052645343,-500.0,0.00011369,2]
[352351154,1739052645352,-915.74,0.00011369,2]
[352351155,1739052645361,-578.63,0.00011369,2]
[352351156,1739052645372,-500.0,0.00011369,2]
[352351157,1739052645381,-650.39,0.00011369,2]
[352351158,1739052645390,-500.0,0.00011369,2]
[352351160,1739052645400,-500.0,0.00011369,2]
[352351162,1739052645409,-775.46,0.00011369,2]
[352351163,1739052645419,-500.0,0.00011369,2]
[352351164,1739052645428,-500.0,0.00011369,2]